[Event "*** SCC Grand Prix: Titled Tuesday Blitz"]
[Site "Chess.com"]
[Date "2020.07.07"]
[Round "7"]
[White "csati17"]
[Black "JesseKraai"]
[Result "1-0"]
[WhiteElo "2651"]
[BlackElo "2488"]
[TimeControl "180+1"]
[EndTime "11:20:23 PDT"]
[Termination "csati17 won by resignation"]

1. c4 {[%clk 0:03:00.9]} 1... b6 {[%clk 0:02:59.5]} 2. Nc3 {[%clk 0:03:00.7]}
2... Bb7 {[%clk 0:02:59.8]} 3. e4 {[%clk 0:03:00.9]} 3... e6 {[%clk 0:03:00]} 4.
g3 {[%clk 0:03:00.8]} 4... c5 {[%clk 0:02:58.9]} 5. Bg2 {[%clk 0:03:00.8]} 5...
d6 {[%clk 0:02:58.8]} 6. Nge2 {[%clk 0:03:00.7]} 6... Nf6 {[%clk 0:02:59.2]} 7.
O-O {[%clk 0:03:00.4]} 7... Nbd7 {[%clk 0:02:59.4]} 8. d3 {[%clk 0:03:00.3]}
8... Qc7 {[%clk 0:02:56.7]} 9. f4 {[%clk 0:02:58.3]} 9... Be7 {[%clk 0:02:55.5]}
10. h3 {[%clk 0:02:55.9]} 10... h5 {[%clk 0:02:54.3]} 11. f5 {[%clk 0:02:22]}
11... Ne5 {[%clk 0:02:47.4]} 12. fxe6 {[%clk 0:02:15.3]} 12... fxe6 {[%clk
0:02:46.8]} 13. Nf4 {[%clk 0:02:16.2]} 13... Qd7 {[%clk 0:02:43.3]} 14. Nb5
{[%clk 0:01:51.6]} 14... a6 {[%clk 0:02:30.1]} 15. Nxe6 {[%clk 0:01:51.5]} 15...
axb5 {[%clk 0:02:29.4]} 16. Nxg7+ {[%clk 0:01:51.9]} 16... Kd8 {[%clk
0:02:29.1]} 17. cxb5 {[%clk 0:01:45.1]} 17... Qxb5 {[%clk 0:02:20.3]} 18. Bg5
{[%clk 0:01:38.5]} 18... Ng8 {[%clk 0:01:46.9]} 19. Bxe7+ {[%clk 0:00:57.7]}
19... Nxe7 {[%clk 0:01:45.1]} 20. Rf6 {[%clk 0:00:56.3]} 20... Kd7 {[%clk
0:01:36.3]} 21. h4 {[%clk 0:00:55.4]} 21... Qxd3 {[%clk 0:01:11]} 22. Qe1 {[%clk
0:00:55.6]} 22... Qd4+ {[%clk 0:00:55.5]} 23. Kh1 {[%clk 0:00:51.1]} 23... Ng4
{[%clk 0:00:53.6]} 24. Rf7 {[%clk 0:00:34.8]} 24... Raf8 {[%clk 0:00:47.6]} 25.
Rxe7+ {[%clk 0:00:35.1]} 25... Kxe7 {[%clk 0:00:45]} 26. Nf5+ {[%clk 0:00:34.4]}
26... Rxf5 {[%clk 0:00:42]} 27. exf5+ {[%clk 0:00:35.3]} 27... Kd7 {[%clk
0:00:20.3]} 28. Qe6+ {[%clk 0:00:33]} 28... Kd8 {[%clk 0:00:16.9]} 29. Bxb7
{[%clk 0:00:32.9]} 29... Re8 {[%clk 0:00:15.7]} 30. Qd5 {[%clk 0:00:29.8]} 30...
Qxd5+ {[%clk 0:00:14.4]} 31. Bxd5 {[%clk 0:00:30.7]} 31... Re5 {[%clk
0:00:13.8]} 32. Be6 {[%clk 0:00:28.9]} 32... d5 {[%clk 0:00:14.1]} 33. a4 {[%clk
0:00:24.5]} 33... d4 {[%clk 0:00:14.3]} 34. a5 {[%clk 0:00:24.9]} 34... bxa5
{[%clk 0:00:14.6]} 35. Rxa5 {[%clk 0:00:25.7]} 35... d3 {[%clk 0:00:12.6]} 36.
Ra8+ {[%clk 0:00:19.1]} 36... Ke7 {[%clk 0:00:12.5]} 37. Ra7+ {[%clk 0:00:19.8]}
37... Ke8 {[%clk 0:00:12.5]} 38. Rd7 {[%clk 0:00:19.7]} 38... Re2 {[%clk
0:00:10]} 39. Rd5 {[%clk 0:00:09.7]} 39... d2 {[%clk 0:00:09.7]} 40. Bd7+ {[%clk
0:00:10]} 40... Ke7 {[%clk 0:00:09.1]} 41. Ba4 {[%clk 0:00:10.1]} 41... Ne3
{[%clk 0:00:07.3]} 42. Rd7+ {[%clk 0:00:06.7]} 42... Kf6 {[%clk 0:00:07.2]} 43.
Kg1 {[%clk 0:00:02.2]} 43... Kxf5 {[%clk 0:00:07.1]} 44. Rd8 {[%clk 0:00:01.6]}
44... Kg4 {[%clk 0:00:06.9]} 45. Rg8+ {[%clk 0:00:01.2]} 45... Kf5 {[%clk
0:00:04.6]} 46. Bd7+ {[%clk 0:00:01.5]} 46... Ke5 {[%clk 0:00:04.6]} 47. Ba4
{[%clk 0:00:02.3]} 47... d1=Q+ {[%clk 0:00:02.5]} 48. Bxd1 {[%clk 0:00:02.4]}
48... Nxd1 {[%clk 0:00:02.5]} 49. Re8+ {[%clk 0:00:02.4]} 49... Kd4 {[%clk
0:00:02.6]} 50. Rxe2 {[%clk 0:00:03.3]} 50... Ne3 {[%clk 0:00:02.1]} 51. Kf2
{[%clk 0:00:03.4]} 51... Nc4 {[%clk 0:00:02.2]} 52. Kf3 {[%clk 0:00:03.5]} 52...
Ne5+ {[%clk 0:00:02.5]} 53. Kf4 {[%clk 0:00:04.1]} 53... Nd3+ {[%clk 0:00:03.2]}
54. Kg5 {[%clk 0:00:04.4]} 54... Nc1 {[%clk 0:00:03.5]} 55. Rc2 {[%clk
0:00:03.7]} 55... Nd3 {[%clk 0:00:03.6]} 56. Kxh5 {[%clk 0:00:04.2]} 56... c4
{[%clk 0:00:04.1]} 57. Rd2 {[%clk 0:00:04.5]} 57... Ke3 {[%clk 0:00:04]} 58. Rc2
{[%clk 0:00:05.1]} 58... Kd4 {[%clk 0:00:04.4]} 59. Kg4 {[%clk 0:00:05.5]} 59...
Ne1 {[%clk 0:00:05.1]} 60. Re2 {[%clk 0:00:05.3]} 60... Kd3 {[%clk 0:00:05.3]}
61. Rxe1 {[%clk 0:00:05.3]} 1-0

[Event "*** SCC Grand Prix: Titled Tuesday Blitz"]
[Site "Chess.com"]
[Date "2020.07.07"]
[Round "7"]
[White "vovachesss"]
[Black "GukeshDommaraju"]
[Result "1-0"]
[WhiteElo "2584"]
[BlackElo "2701"]
[TimeControl "180+1"]
[EndTime "11:20:28 PDT"]
[Termination "vovachesss won on time"]

1. Nf3 {[%clk 0:03:00.9]} 1... Nf6 {[%clk 0:02:59.6]} 2. b3 {[%clk 0:03:01]}
2... d6 {[%clk 0:02:59.3]} 3. Bb2 {[%clk 0:03:01]} 3... e5 {[%clk 0:02:59.8]} 4.
c4 {[%clk 0:03:01.1]} 4... g6 {[%clk 0:02:58.9]} 5. d4 {[%clk 0:02:57.6]} 5...
e4 {[%clk 0:02:58.4]} 6. Nfd2 {[%clk 0:02:47.1]} 6... Bg7 {[%clk 0:02:42.3]} 7.
e3 {[%clk 0:02:45.9]} 7... O-O {[%clk 0:02:41.8]} 8. Nc3 {[%clk 0:02:45.6]} 8...
Re8 {[%clk 0:02:36.5]} 9. Be2 {[%clk 0:02:33.9]} 9... h5 {[%clk 0:02:34.5]} 10.
O-O {[%clk 0:02:31]} 10... Bf5 {[%clk 0:02:29.1]} 11. f3 {[%clk 0:02:23]} 11...
exf3 {[%clk 0:02:25.2]} 12. Bxf3 {[%clk 0:02:23]} 12... Nc6 {[%clk 0:02:09]} 13.
Bxc6 {[%clk 0:01:30.2]} 13... bxc6 {[%clk 0:02:08.5]} 14. e4 {[%clk 0:01:31.1]}
14... Nxe4 {[%clk 0:01:40.3]} 15. Ndxe4 {[%clk 0:01:31.5]} 15... Bxe4 {[%clk
0:01:40]} 16. Nxe4 {[%clk 0:01:31.8]} 16... Rxe4 {[%clk 0:01:40.9]} 17. Rxf7
{[%clk 0:01:17.7]} 17... Qg5 {[%clk 0:01:30.3]} 18. Qf3 {[%clk 0:01:05.6]} 18...
Re3 {[%clk 0:01:26.1]} 19. Qf2 {[%clk 0:01:01.5]} 19... Rae8 {[%clk 0:01:24.5]}
20. Rf1 {[%clk 0:00:32.2]} 20... Bh6 {[%clk 0:00:53.4]} 21. d5 {[%clk
0:00:27.4]} 21... R3e7 {[%clk 0:00:39.9]} 22. Rxe7 {[%clk 0:00:17]} 22... Qxe7
{[%clk 0:00:39.6]} 23. Kh1 {[%clk 0:00:12.9]} 23... Rf8 {[%clk 0:00:38.1]} 24.
Qg1 {[%clk 0:00:05.9]} 24... cxd5 {[%clk 0:00:37]} 25. cxd5 {[%clk 0:00:04.6]}
25... Qe2 {[%clk 0:00:36.6]} 26. Rxf8+ {[%clk 0:00:04.2]} 26... Bxf8 {[%clk
0:00:35.9]} 27. Ba1 {[%clk 0:00:03.2]} 27... Qxa2 {[%clk 0:00:31.9]} 28. h3
{[%clk 0:00:03.6]} 28... Qd2 {[%clk 0:00:28]} 29. Qf1 {[%clk 0:00:02.6]} 29...
Bg7 {[%clk 0:00:24.5]} 30. Bxg7 {[%clk 0:00:03]} 30... Kxg7 {[%clk 0:00:25.4]}
31. Qc4 {[%clk 0:00:03.4]} 31... Qe1+ {[%clk 0:00:18.5]} 32. Kh2 {[%clk
0:00:04]} 32... Qe5+ {[%clk 0:00:19.4]} 33. Kh1 {[%clk 0:00:04.6]} 33... Kh6
{[%clk 0:00:17.6]} 34. Qxc7 {[%clk 0:00:04]} 34... Qxd5 {[%clk 0:00:17.4]} 35.
Qxa7 {[%clk 0:00:04.3]} 35... Qxb3 {[%clk 0:00:17.6]} 36. Qd4 {[%clk 0:00:05]}
36... Qe6 {[%clk 0:00:15.6]} 37. Qh8+ {[%clk 0:00:04.8]} 37... Kg5 {[%clk
0:00:15.9]} 38. Qd8+ {[%clk 0:00:03.1]} 38... Kf4 {[%clk 0:00:14]} 39. Qh4+
{[%clk 0:00:02.6]} 39... Ke5 {[%clk 0:00:11.8]} 40. Qe1+ {[%clk 0:00:02.8]}
40... Kf6 {[%clk 0:00:11.5]} 41. Qf2+ {[%clk 0:00:03]} 41... Qf5 {[%clk
0:00:11.6]} 42. Qd4+ {[%clk 0:00:03.5]} 42... Qe5 {[%clk 0:00:11.9]} 43. Qf2+
{[%clk 0:00:03.9]} 43... Ke6 {[%clk 0:00:12.1]} 44. Qf8 {[%clk 0:00:03.9]} 44...
Qe1+ {[%clk 0:00:11.5]} 45. Kh2 {[%clk 0:00:04.1]} 45... Qe5+ {[%clk 0:00:12.4]}
46. Kh1 {[%clk 0:00:04.8]} 46... Qf5 {[%clk 0:00:12.7]} 47. Qe8+ {[%clk
0:00:04.8]} 47... Kd5 {[%clk 0:00:12.9]} 48. Qb5+ {[%clk 0:00:05.2]} 48... Ke4
{[%clk 0:00:13.1]} 49. Qe2+ {[%clk 0:00:05.4]} 49... Kf4 {[%clk 0:00:11.7]} 50.
Qd2+ {[%clk 0:00:05.7]} 50... Kg3 {[%clk 0:00:09.4]} 51. Qe3+ {[%clk 0:00:05.1]}
51... Kh4 {[%clk 0:00:09.4]} 52. Kh2 {[%clk 0:00:05.4]} 52... Qe5+ {[%clk
0:00:09.5]} 53. g3+ {[%clk 0:00:05.9]} 1-0

[Event "*** SCC Grand Prix: Titled Tuesday Blitz"]
[Site "Chess.com"]
[Date "2020.07.07"]
[Round "7"]
[White "fighter2jz"]
[Black "viditchess"]
[Result "1/2-1/2"]
[WhiteElo "2822"]
[BlackElo "3012"]
[TimeControl "180+1"]
[EndTime "11:20:29 PDT"]
[Termination "Game drawn - insufficient material"]

1. e4 {[%clk 0:03:00.9]} 1... c5 {[%clk 0:02:59.4]} 2. Nf3 {[%clk 0:03:00.6]}
2... d6 {[%clk 0:02:59.9]} 3. d4 {[%clk 0:03:00]} 3... cxd4 {[%clk 0:03:00.8]}
4. Nxd4 {[%clk 0:03:00.1]} 4... Nf6 {[%clk 0:03:01.5]} 5. Nc3 {[%clk 0:03:00.1]}
5... Nc6 {[%clk 0:03:02.1]} 6. Be2 {[%clk 0:02:49.5]} 6... e5 {[%clk 0:03:01.4]}
7. Nb3 {[%clk 0:02:49.2]} 7... Be7 {[%clk 0:03:01.5]} 8. O-O {[%clk 0:02:49.3]}
8... O-O {[%clk 0:03:01.4]} 9. f4 {[%clk 0:02:48.8]} 9... a5 {[%clk 0:03:01.2]}
10. a4 {[%clk 0:02:41.2]} 10... Be6 {[%clk 0:03:00.8]} 11. f5 {[%clk 0:02:36.3]}
11... Bxb3 {[%clk 0:03:00.2]} 12. cxb3 {[%clk 0:02:36.4]} 12... Nb4 {[%clk
0:02:40.5]} 13. Bc4 {[%clk 0:02:34.7]} 13... h6 {[%clk 0:02:17.9]} 14. Kh1
{[%clk 0:02:22.3]} 14... Rc8 {[%clk 0:02:15.2]} 15. Be3 {[%clk 0:02:20.7]} 15...
Qc7 {[%clk 0:01:50.1]} 16. Rc1 {[%clk 0:02:07.2]} 16... Qb8 {[%clk 0:01:49]} 17.
Qf3 {[%clk 0:01:55.8]} 17... Nh7 {[%clk 0:01:45.8]} 18. Rcd1 {[%clk 0:01:45.5]}
18... Nf6 {[%clk 0:01:36]} 19. Rg1 {[%clk 0:01:39.7]} 19... Nh7 {[%clk
0:01:20.5]} 20. g4 {[%clk 0:01:32.5]} 20... Bh4 {[%clk 0:01:11]} 21. Qh3 {[%clk
0:00:58.7]} 21... Bg5 {[%clk 0:01:10.1]} 22. Bf2 {[%clk 0:00:58.9]} 22... Qc7
{[%clk 0:01:02.8]} 23. Qg3 {[%clk 0:00:56.4]} 23... Qe7 {[%clk 0:00:59.3]} 24.
h4 {[%clk 0:00:55.8]} 24... Bf4 {[%clk 0:00:59.7]} 25. Qf3 {[%clk 0:00:54]}
25... Qf6 {[%clk 0:00:45.8]} 26. Ne2 {[%clk 0:00:50.7]} 26... Nc6 {[%clk
0:00:19]} 27. Nxf4 {[%clk 0:00:29.2]} 27... exf4 {[%clk 0:00:19.9]} 28. Qxf4
{[%clk 0:00:29]} 28... Qxb2 {[%clk 0:00:20.5]} 29. g5 {[%clk 0:00:29.1]} 29...
Kh8 {[%clk 0:00:19.4]} 30. gxh6 {[%clk 0:00:27]} 30... g6 {[%clk 0:00:20]} 31.
Rxd6 {[%clk 0:00:22.7]} 31... Rce8 {[%clk 0:00:19.3]} 32. Rgd1 {[%clk
0:00:21.3]} 32... gxf5 {[%clk 0:00:15.7]} 33. Rxc6 {[%clk 0:00:21.2]} 33... Rxe4
{[%clk 0:00:16]} 34. Qxf5 {[%clk 0:00:21.1]} 34... bxc6 {[%clk 0:00:15.7]} 35.
Qxe4 {[%clk 0:00:18]} 35... Qxf2 {[%clk 0:00:15.9]} 36. Rf1 {[%clk 0:00:18]}
36... Qg3 {[%clk 0:00:15.7]} 37. Qd4+ {[%clk 0:00:18.2]} 37... f6 {[%clk
0:00:15.5]} 38. Be6 {[%clk 0:00:18.2]} 38... Re8 {[%clk 0:00:13.5]} 39. Bf5
{[%clk 0:00:10.7]} 39... c5 {[%clk 0:00:11.8]} 40. Qf4 {[%clk 0:00:08.1]} 40...
Re3 {[%clk 0:00:05.8]} 41. Qxg3 {[%clk 0:00:07.8]} 41... Rxg3 {[%clk 0:00:06.7]}
42. Bxh7 {[%clk 0:00:08.6]} 42... Kxh7 {[%clk 0:00:07]} 43. Rxf6 {[%clk
0:00:09.5]} 43... Rxb3 {[%clk 0:00:07.6]} 44. Rc6 {[%clk 0:00:09.9]} 44... Rb4
{[%clk 0:00:07.7]} 45. Rxc5 {[%clk 0:00:10]} 45... Rxh4+ {[%clk 0:00:08.4]} 46.
Kg2 {[%clk 0:00:10.4]} 46... Rxa4 {[%clk 0:00:09.3]} 47. Rc6 {[%clk 0:00:11]}
47... Rb4 {[%clk 0:00:09]} 48. Kg3 {[%clk 0:00:10.9]} 48... a4 {[%clk
0:00:09.2]} 49. Ra6 {[%clk 0:00:11.6]} 49... Rb3+ {[%clk 0:00:09.2]} 50. Kg4
{[%clk 0:00:12]} 50... a3 {[%clk 0:00:10]} 51. Kg5 {[%clk 0:00:12.4]} 51... Rg3+
{[%clk 0:00:10.3]} 52. Kf5 {[%clk 0:00:12.8]} 52... Rf3+ {[%clk 0:00:09.4]} 53.
Ke5 {[%clk 0:00:13]} 53... Rh3 {[%clk 0:00:08.8]} 54. Kd4 {[%clk 0:00:13]} 54...
Rxh6 {[%clk 0:00:07.8]} 55. Rxh6+ {[%clk 0:00:13]} 55... Kxh6 {[%clk 0:00:08.7]}
56. Kc3 {[%clk 0:00:13.6]} 56... Kg5 {[%clk 0:00:08.9]} 57. Kb3 {[%clk
0:00:13.9]} 57... Kf4 {[%clk 0:00:09.6]} 58. Kxa3 {[%clk 0:00:14.3]} 1/2-1/2

[Event "*** SCC Grand Prix: Titled Tuesday Blitz"]
[Site "Chess.com"]
[Date "2020.07.07"]
[Round "7"]
[White "Safar_From_Afar"]
[Black "TimKett"]
[Result "1/2-1/2"]
[WhiteElo "2147"]
[BlackElo "2137"]
[TimeControl "180+1"]
[EndTime "11:20:29 PDT"]
[Termination "Game drawn - insufficient material"]

1. e4 {[%clk 0:03:00.9]} 1... e5 {[%clk 0:02:59.7]} 2. Nf3 {[%clk 0:03:00.6]}
2... Nc6 {[%clk 0:02:59.4]} 3. Bb5 {[%clk 0:03:00.9]} 3... a6 {[%clk 0:02:58.2]}
4. Bxc6 {[%clk 0:03:00.4]} 4... dxc6 {[%clk 0:02:57.7]} 5. O-O {[%clk
0:03:00.1]} 5... Bg4 {[%clk 0:02:56.3]} 6. h3 {[%clk 0:02:58.7]} 6... Bh5 {[%clk
0:02:56.4]} 7. g4 {[%clk 0:02:58.2]} 7... Bg6 {[%clk 0:02:54.4]} 8. Nxe5 {[%clk
0:02:58.3]} 8... Qh4 {[%clk 0:02:53.4]} 9. Qf3 {[%clk 0:02:50]} 9... O-O-O
{[%clk 0:02:50.3]} 10. Kg2 {[%clk 0:02:46.3]} 10... f6 {[%clk 0:02:50]} 11. Nxg6
{[%clk 0:02:43.1]} 11... hxg6 {[%clk 0:02:50.3]} 12. d3 {[%clk 0:02:43.5]} 12...
Ne7 {[%clk 0:02:47.9]} 13. Rh1 {[%clk 0:02:20.7]} 13... g5 {[%clk 0:02:47.4]}
14. Be3 {[%clk 0:02:19.4]} 14... Kb8 {[%clk 0:02:23.2]} 15. Kf1 {[%clk
0:02:10.2]} 15... Ng6 {[%clk 0:02:22.1]} 16. Nd2 {[%clk 0:02:03.3]} 16... Bd6
{[%clk 0:02:20.2]} 17. Nc4 {[%clk 0:01:59]} 17... Bf4 {[%clk 0:02:19.1]} 18. Ke2
{[%clk 0:01:51.9]} 18... Qh7 {[%clk 0:01:34.2]} 19. Kd2 {[%clk 0:01:25.1]} 19...
Qg8 {[%clk 0:01:30.9]} 20. Bxf4 {[%clk 0:01:05.9]} 20... Qxc4 {[%clk 0:01:16.4]}
21. Be3 {[%clk 0:01:01.7]} 21... Qb4+ {[%clk 0:01:12.6]} 22. Kc1 {[%clk
0:00:59.5]} 22... Nh4 {[%clk 0:01:02.2]} 23. Qe2 {[%clk 0:00:58.1]} 23... c5
{[%clk 0:00:55.6]} 24. c3 {[%clk 0:00:57.2]} 24... Qa5 {[%clk 0:00:49.5]} 25.
Kc2 {[%clk 0:00:56.5]} 25... Rhe8 {[%clk 0:00:45.1]} 26. a3 {[%clk 0:00:49.3]}
26... c4 {[%clk 0:00:45.1]} 27. Rad1 {[%clk 0:00:34.5]} 27... Qa4+ {[%clk
0:00:36.5]} 28. Kc1 {[%clk 0:00:32.1]} 28... cxd3 {[%clk 0:00:34.7]} 29. Rxd3
{[%clk 0:00:32.1]} 29... Rxd3 {[%clk 0:00:34.4]} 30. Qxd3 {[%clk 0:00:31.6]}
30... Qxe4 {[%clk 0:00:33.1]} 31. Rd1 {[%clk 0:00:26.8]} 31... Qxd3 {[%clk
0:00:27.1]} 32. Rxd3 {[%clk 0:00:27.7]} 32... Kc8 {[%clk 0:00:17.5]} 33. Kd2
{[%clk 0:00:27.8]} 33... b6 {[%clk 0:00:16.3]} 34. Ke2 {[%clk 0:00:27.3]} 34...
Ng6 {[%clk 0:00:16.3]} 35. Kf1 {[%clk 0:00:22.5]} 35... c5 {[%clk 0:00:13.5]}
36. c4 {[%clk 0:00:18.8]} 36... Kc7 {[%clk 0:00:13.8]} 37. b3 {[%clk 0:00:18.5]}
37... Kc6 {[%clk 0:00:13.6]} 38. Rd5 {[%clk 0:00:18.5]} 38... Nf4 {[%clk
0:00:12.7]} 39. Bxf4 {[%clk 0:00:18.1]} 39... gxf4 {[%clk 0:00:12.7]} 40. Rf5
{[%clk 0:00:13.6]} 40... Re4 {[%clk 0:00:12.6]} 41. Kg2 {[%clk 0:00:13.6]} 41...
b5 {[%clk 0:00:11]} 42. cxb5+ {[%clk 0:00:12.6]} 42... axb5 {[%clk 0:00:11.1]}
43. Kf3 {[%clk 0:00:12.8]} 43... Rd4 {[%clk 0:00:10.6]} 44. Rxf4 {[%clk
0:00:12.6]} 44... Rd3+ {[%clk 0:00:10.7]} 45. Ke4 {[%clk 0:00:11.5]} 45... Rxb3
{[%clk 0:00:11.1]} 46. Rf3 {[%clk 0:00:10.4]} 46... Rb1 {[%clk 0:00:09.9]} 47.
Kf5 {[%clk 0:00:09.8]} 47... b4 {[%clk 0:00:09.9]} 48. axb4 {[%clk 0:00:09.6]}
48... cxb4 {[%clk 0:00:09.8]} 49. Kg6 {[%clk 0:00:09.9]} 49... b3 {[%clk
0:00:09.5]} 50. Kxg7 {[%clk 0:00:10.1]} 50... Kc5 {[%clk 0:00:08.5]} 51. h4
{[%clk 0:00:09.7]} 51... Kc4 {[%clk 0:00:08.7]} 52. h5 {[%clk 0:00:09.4]} 52...
b2 {[%clk 0:00:08.9]} 53. Rxf6 {[%clk 0:00:08.8]} 53... Rg1 {[%clk 0:00:09]} 54.
Rc6+ {[%clk 0:00:05.1]} 54... Kd3 {[%clk 0:00:07.8]} 55. Rb6 {[%clk 0:00:03.8]}
55... Rxg4+ {[%clk 0:00:06.1]} 56. Kf7 {[%clk 0:00:02.8]} 56... Kc2 {[%clk
0:00:05]} 57. h6 {[%clk 0:00:02.4]} 57... Rf4+ {[%clk 0:00:05.2]} 58. Kg7 {[%clk
0:00:02.1]} 58... Rxf2 {[%clk 0:00:05]} 59. Rxb2+ {[%clk 0:00:01.9]} 59... Kxb2
{[%clk 0:00:04.2]} 60. h7 {[%clk 0:00:02.8]} 60... Rh2 {[%clk 0:00:04.3]} 61.
h8=Q {[%clk 0:00:02.5]} 61... Rxh8 {[%clk 0:00:04.6]} 62. Kxh8 {[%clk
0:00:03.4]} 1/2-1/2

[Event "*** SCC Grand Prix: Titled Tuesday Blitz"]
[Site "Chess.com"]
[Date "2020.07.07"]
[Round "7"]
[White "FlamingPhoenix123"]
[Black "FMKonstantin_Twitch"]
[Result "1-0"]
[WhiteElo "2427"]
[BlackElo "2559"]
[TimeControl "180+1"]
[EndTime "11:20:30 PDT"]
[Termination "FlamingPhoenix123 won by resignation"]

1. e4 {[%clk 0:03:00.9]} 1... d5 {[%clk 0:02:57]} 2. exd5 {[%clk 0:03:00.7]}
2... Qxd5 {[%clk 0:02:57.9]} 3. Nc3 {[%clk 0:03:00.7]} 3... Qe6+ {[%clk
0:02:58.4]} 4. Be2 {[%clk 0:02:58.7]} 4... Qg6 {[%clk 0:02:58.4]} 5. Bf3 {[%clk
0:02:40.2]} 5... Nc6 {[%clk 0:02:57]} 6. d4 {[%clk 0:02:37.6]} 6... Bf5 {[%clk
0:02:56.1]} 7. Bxc6+ {[%clk 0:02:15]} 7... Qxc6 {[%clk 0:02:54.7]} 8. Nf3 {[%clk
0:02:09]} 8... e5 {[%clk 0:02:43]} 9. O-O {[%clk 0:02:01.5]} 9... O-O-O {[%clk
0:02:32.7]} 10. Nxe5 {[%clk 0:01:57.1]} 10... Qe8 {[%clk 0:02:30.3]} 11. Qf3
{[%clk 0:01:53.9]} 11... Be6 {[%clk 0:02:21.5]} 12. Bf4 {[%clk 0:01:45.6]} 12...
Nf6 {[%clk 0:02:18.8]} 13. Rad1 {[%clk 0:01:39.9]} 13... Nd5 {[%clk 0:02:16.7]}
14. Nxd5 {[%clk 0:01:39.3]} 14... Bxd5 {[%clk 0:02:17.6]} 15. Qg4+ {[%clk
0:01:30.7]} 15... Be6 {[%clk 0:02:15.2]} 16. Qg3 {[%clk 0:01:20.5]} 16... f6
{[%clk 0:02:10.9]} 17. Nf3 {[%clk 0:01:16.7]} 17... Qf7 {[%clk 0:02:04.3]} 18.
Rfe1 {[%clk 0:01:14.6]} 18... Bd5 {[%clk 0:02:01.6]} 19. Nd2 {[%clk 0:00:58.8]}
19... g5 {[%clk 0:02:00.8]} 20. Be3 {[%clk 0:00:58]} 20... Bd6 {[%clk
0:01:56.3]} 21. Qh3+ {[%clk 0:00:55.2]} 21... Kb8 {[%clk 0:01:50.2]} 22. b3
{[%clk 0:00:45.8]} 22... f5 {[%clk 0:01:35.7]} 23. c4 {[%clk 0:00:29]} 23... Be6
{[%clk 0:01:35.2]} 24. Bxg5 {[%clk 0:00:28.7]} 24... Rdg8 {[%clk 0:01:34.9]} 25.
d5 {[%clk 0:00:16.9]} 25... Bc8 {[%clk 0:01:30.6]} 26. Nf3 {[%clk 0:00:16.9]}
26... h6 {[%clk 0:01:28.5]} 27. Bh4 {[%clk 0:00:16.2]} 27... f4 {[%clk
0:01:27.1]} 28. Re6 {[%clk 0:00:16.7]} 28... Bxe6 {[%clk 0:01:24.4]} 29. dxe6
{[%clk 0:00:17.6]} 29... Qf8 {[%clk 0:01:19.6]} 30. Re1 {[%clk 0:00:17.6]} 30...
Rh7 {[%clk 0:01:15.4]} 31. Ne5 {[%clk 0:00:15.3]} 31... Bxe5 {[%clk 0:01:10.8]}
32. Rxe5 {[%clk 0:00:16.2]} 32... f3 {[%clk 0:01:09.8]} 33. Bg3 {[%clk
0:00:15.6]} 33... h5 {[%clk 0:00:56.6]} 34. Rxh5 {[%clk 0:00:13.3]} 34... Rxh5
{[%clk 0:00:53.1]} 35. Qxh5 {[%clk 0:00:14.2]} 35... fxg2 {[%clk 0:00:44.5]} 36.
Qe5 {[%clk 0:00:13.9]} 36... Qe7 {[%clk 0:00:40.1]} 37. Kxg2 {[%clk 0:00:14]}
37... Re8 {[%clk 0:00:35.3]} 38. h4 {[%clk 0:00:14]} 38... Qxe6 {[%clk
0:00:35.8]} 39. Qxc7+ {[%clk 0:00:13.5]} 39... Ka8 {[%clk 0:00:35.7]} 40. Qf4
{[%clk 0:00:14.4]} 40... Qc6+ {[%clk 0:00:35.1]} 41. Qf3 {[%clk 0:00:14.6]}
41... Qa6 {[%clk 0:00:34.1]} 42. h5 {[%clk 0:00:13.2]} 42... Qh6 {[%clk
0:00:31.8]} 43. Bf4 {[%clk 0:00:12.4]} 43... Rg8+ {[%clk 0:00:30.9]} 44. Bg3
{[%clk 0:00:12.6]} 44... Rh8 {[%clk 0:00:29.6]} 45. Qg4 {[%clk 0:00:09.8]} 45...
Qxh5 {[%clk 0:00:29.5]} 46. Qxh5 {[%clk 0:00:09.8]} 46... Rxh5 {[%clk
0:00:30.4]} 47. Kf3 {[%clk 0:00:10.7]} 47... Rh1 {[%clk 0:00:27.7]} 48. Ke4
{[%clk 0:00:10.3]} 48... Ra1 {[%clk 0:00:28.2]} 49. Be5 {[%clk 0:00:08]} 49...
Rxa2 {[%clk 0:00:27.7]} 50. f4 {[%clk 0:00:08.2]} 50... Re2+ {[%clk 0:00:26.8]}
51. Kd5 {[%clk 0:00:08]} 51... Rf2 {[%clk 0:00:26.6]} 52. Ke6 {[%clk 0:00:08.1]}
52... b5 {[%clk 0:00:26.6]} 53. c5 {[%clk 0:00:07.3]} 53... Kb7 {[%clk
0:00:22.6]} 54. Kd7 {[%clk 0:00:07.4]} 54... Rc2 {[%clk 0:00:19.8]} 55. Bd6
{[%clk 0:00:06.1]} 55... a5 {[%clk 0:00:19.5]} 56. f5 {[%clk 0:00:06.5]} 56...
a4 {[%clk 0:00:20.1]} 57. bxa4 {[%clk 0:00:07.4]} 57... bxa4 {[%clk 0:00:21]}
58. f6 {[%clk 0:00:08.3]} 58... a3 {[%clk 0:00:21.9]} 59. f7 {[%clk 0:00:07.5]}
59... Rf2 {[%clk 0:00:20.6]} 60. c6+ {[%clk 0:00:07.4]} 60... Kb6 {[%clk
0:00:20.6]} 61. f8=Q {[%clk 0:00:05.7]} 61... Rxf8 {[%clk 0:00:18.3]} 62. Bxf8
{[%clk 0:00:06.6]} 62... a2 {[%clk 0:00:19.2]} 63. Bg7 {[%clk 0:00:07]} 1-0